bitfinex/quotes_SOLUSD_20250118
["timestamp","ask_amount","ask_price","bid_price","bid_amount"]
[1737195641839,23.776884,240.42,240.33,32.51386171]
[1737195642250,32.51386171,240.45,240.35,32.51386171]
[1737195642630,42.90486171,240.6,240.37,32.51386171]
[1737195642631,32.51386171,240.47,240.37,32.51386171]
[1737195642832,23.776884,240.46,240.37,32.51386171]
[1737195643045,23.776884,240.44,240.37,32.51386171]
[1737195643248,23.776884,240.42,240.35,32.51386171]
[1737195643655,32.51386171,240.37,240.29,32.51386171]
[1737195643832,32.51386171,240.48,240.25,4.1623]
[1737195643833,23.776884,240.34,240.25,32.51386171]
[1737195644028,23.776884,240.34,240.12,169.81386171]
[1737195644029,23.776884,240.28,240.21,32.51386171]
[1737195644232,23.776884,240.28,240.13,4.8]
[1737195644233,23.776884,240.28,240.19,32.51386171]
[1737195644762,23.776884,240.28,240.13,14.5754]
[1737195644936,23.776884,240.28,240.19,32.51386171]
[1737195645255,23.776884,240.22,240.15,32.51386171]
[1737195645462,32.51386171,240.25,240.15,32.51386171]
[1737195645689,32.51386171,240.23,240.13,32.51386171]
[1737195645973,23.776884,240.18,240.09,36.67896171]
[1737195646135,32.51386171,240.17,240.09,32.51386171]
[1737195646459,23.776884,240.16,240.08,4.1651]
[1737195646762,32.51386171,240.24,240.15,32.51386171]
[1737195647052,23.776884,240.21,240.13,32.51386171]
[1737195647433,34.5646,240.31,240.08,4.1651]
[1737195647434,23.776884,240.17,240.09,32.51386171]
[1737195647647,23.776884,240.17,240.08,4.1651]
[1737195647648,23.776884,240.15,240.07,32.51386171]
[1737195648348,32.51386171,240.11,239.95,4.1675]
[1737195648656,32.51386171,240.11,240.01,32.51386171]
[1737195648851,23.776884,240.1,240.03,32.51386171]
[1737195649669,12.43,240.38,240.12,20.0]
[1737195649865,32.51386171,240.25,240.17,32.51386171]
[1737195650165,32.51386171,240.19,240.07,32.51386171]
[1737195650343,32.51386171,240.21,240.11,32.51386171]
[1737195650758,32.51386171,240.23,240.13,32.51386171]
[1737195650956,23.776884,240.2,240.13,32.51386171]
[1737195651153,23.776884,240.2,240.11,32.51386171]
[1737195651367,23.776884,240.16,240.07,32.51386171]
[1737195651667,23.776884,240.14,240.03,4.1661]
[1737195651846,23.776884,240.14,240.05,32.51386171]
[1737195652045,32.51386171,240.13,240.03,32.51386171]
[1737195652365,32.51386171,240.17,240.07,32.51386171]
[1737195652567,32.51386171,240.17,240.09,32.51386171]
[1737195652769,32.51386171,240.17,240.09,3.59531339]
[1737195653071,23.776884,240.16,240.03,20.0]
[1737195653245,32.51386171,240.19,240.1,32.51386171]
[1737195653748,23.776884,240.18,240.1,32.51386171]
[1737195653955,32.51386171,240.19,240.1,32.51386171]
[1737195654271,0.063,240.35,240.03,20.03]
[1737195654272,32.51386171,240.23,240.14,32.51386171]
[1737195654562,23.776884,240.18,240.04,4.1659]
[1737195654863,23.776884,240.14,240.06,32.51386171]
[1737195655064,32.51386171,240.19,240.1,32.51386171]
[1737195655482,23.776884,240.18,240.12,32.51386171]
[1737195655770,23.776884,240.18,240.1,32.51386171]
[1737195656375,23.776884,240.12,240.03,32.54386171]
[1737195656549,23.776884,240.1,240.03,0.03]
[1737195658369,23.776884,240.08,240.03,0.03]
[1737195659653,27.942184,240.08,240.03,0.03]
[1737195659962,23.776884,240.06,240.03,0.03]
[1737195660355,4.1653,240.08,240.03,0.03]
[1737195660556,32.51386171,240.07,240.03,0.03]
[1737195661161,23.776884,240.04,240.03,0.03]
[1737195661485,36.206884,239.96,239.84,32.51386171]
[1737195661772,4.167,239.98,239.9,32.51386171]
[1737195661985,36.68066171,239.99,239.9,32.51386171]
[1737195662690,32.51386171,239.99,239.9,32.51386171]
[1737195662854,10.4153,240.03,239.83,14.5936]
[1737195662855,32.51386171,240.03,239.94,32.51386171]
[1737195663060,32.51386171,239.95,239.86,32.51386171]
[1737195663377,23.776884,239.9,239.83,32.51386171]
[1737195663578,23.776884,239.9,239.81,32.51386171]
[1737195663880,32.51386171,239.87,239.8,0.03]
[1737195664075,23.776884,239.86,239.8,0.03]
[1737195664778,23.776884,239.88,239.8,32.54386171]
[1737195665166,23.776884,239.88,239.8,0.03]
[1737195665482,23.776884,239.88,239.8,32.54386171]
[1737195665778,32.51386171,239.91,239.8,32.54386171]
[1737195665992,32.51386171,239.84,239.8,0.03]
[1737195666154,23.776884,239.85,239.8,0.03]
[1737195666958,23.776884,239.83,239.8,0.03]
[1737195668094,23.776884,239.81,239.8,0.03]
[1737195668460,23.776884,239.81,239.8,0.0001]
[1737195669075,43.776884,239.79,239.78,0.0001]
[1737195669279,76.29074571,239.79,239.78,0.0001]
[1737195669874,112.97490742,239.79,239.78,0.0001]
[1737195670072,23.776884,239.74,239.72,0.03]
[1737195670275,20.0,239.7,239.68,0.0001]
[1737195670491,56.29074571,239.69,239.68,0.0001]
[1737195671283,56.29074571,239.69,239.63,0.03]
[1737195671284,20.0,239.65,239.4,32.784839]
[1737195671484,32.51386171,239.51,239.42,32.51386171]
[1737195671866,23.776884,239.5,239.42,32.51386171]
[1737195672260,23.776884,239.5,239.4,4.1769]
[1737195672261,23.776884,239.48,239.4,32.51386171]
[1737195672477,23.776884,239.45,239.37,32.51386171]
[1737195673474,32.51386171,239.44,239.35,32.51386171]
[1737195673670,32.51386171,239.4,239.32,32.51386171]
[1737195673875,32.51386171,239.33,239.23,32.51386171]
[1737195674087,32.51386171,239.33,239.25,32.51386171]
[1737195674582,23.776884,239.32,239.23,36.69376171]
[1737195674785,23.776884,239.3,239.23,32.51386171]
[1737195674982,32.51386171,239.29,239.19,32.51386171]
[1737195675178,32.51386171,239.31,239.23,32.51386171]
[1737195675379,32.51386171,239.29,239.21,32.51386171]
[1737195675770,32.51386171,239.31,239.21,32.51386171]
[1737195675972,32.51386171,239.33,239.25,32.51386171]
[1737195676162,32.51386171,239.37,239.27,32.51386171]
[1737195676367,49.22245271,239.39,239.31,32.51386171]
[1737195676568,32.51386171,239.41,239.33,32.51386171]
[1737195676795,49.21670871,239.41,239.33,32.51386171]
[1737195676970,32.51386171,239.39,239.34,20.0]
[1737195677171,32.51386171,239.49,239.38,32.51386171]
[1737195677379,32.51386171,239.51,239.42,32.51386171]
[1737195677697,16.697656,239.49,239.42,32.51386171]
[1737195678400,32.51386171,239.55,239.46,32.51386171]
[1737195678604,32.51386171,239.51,239.42,32.51386171]
[1737195678965,49.20839471,239.53,239.44,32.51386171]
[1737195679465,32.51386171,239.51,239.42,32.51386171]
[1737195679668,49.20839471,239.53,239.44,32.51386171]
[1737195679868,32.51386171,239.59,239.48,32.51386171]
[1737195680085,16.692583,239.56,239.5,32.51386171]
[1737195680371,16.692583,239.56,239.48,32.51386171]
[1737195680593,32.51386171,239.53,239.45,32.51386171]
[1737195680801,23.776884,239.52,239.45,32.51386171]
[1737195681092,16.692583,239.56,239.49,32.51386171]
[1737195681302,16.692583,239.56,239.47,32.51386171]
[1737195681468,32.51386171,239.55,239.47,32.51386171]
[1737195682068,32.51386171,239.55,239.45,32.51386171]
[1737195682401,23.776884,239.54,239.45,32.51386171]
[1737195682901,23.776884,239.54,239.47,32.51386171]
[1737195683066,16.692583,239.56,239.49,32.51386171]
[1737195683268,16.692583,239.56,239.51,32.51386171]
[1737195683688,32.51386171,239.63,239.54,32.51386171]
[1737195683876,16.685454,239.63,239.59,32.51386171]
[1737195684074,16.685454,239.63,239.6,4.1736]
[1737195684594,16.682726,239.68,239.61,32.51386171]
[1737195684778,16.682726,239.68,239.63,32.51386171]
[1737195684970,16.682726,239.68,239.61,32.51386171]
[1737195685502,32.51386171,239.62,239.52,0.62593714]
[1737195685797,32.51386171,239.56,239.45,32.51386171]
[1737195685971,32.51386171,239.52,239.41,32.51386171]
[1737195686170,32.51386171,239.52,239.42,4.1767]
[1737195686383,32.51386171,239.54,239.45,32.51386171]
[1737195686684,23.776884,239.55,239.47,32.51386171]
[1737195686871,23.776884,239.55,239.45,32.51386171]
[1737195687500,12.52,239.66,239.42,14.6186]
[1737195687501,32.51386171,239.58,239.5,20.0]
[1737195687693,32.51386171,239.62,239.54,20.0]
[1737195687900,32.51386171,239.64,239.53,32.51386171]
[1737195688102,23.776884,239.59,239.49,32.51386171]
[1737195688399,4.172,239.69,239.4,4.1769]
[1737195688400,23.776884,239.5,239.4,4.1769]
[1737195688602,23.776884,239.44,239.34,4.1781]
[1737195688904,23.776884,239.44,239.35,32.51386171]
[1737195689806,32.51386171,239.45,239.36,4.1778]
[1737195689980,32.51386171,239.49,239.39,32.51386171]
[1737195690483,32.51386171,239.47,239.39,32.51386171]
[1737195691002,32.51386171,239.47,239.4,4.1771]
[1737195691300,23.776884,239.49,239.42,20.0]
[1737195691301,32.51386171,239.49,239.42,20.0]
[1737195691605,4.2376,239.55,239.42,52.51386171]
[1737195691606,23.776884,239.51,239.42,52.51386171]
[1737195691910,32.51386171,239.54,239.44,32.51386171]
[1737195692208,0.063,239.55,239.49,20.0]
[1737195692712,0.063,239.55,239.5,32.51386171]
[1737195692882,0.063,239.55,239.52,32.51386171]
[1737195693078,0.063,239.55,239.53,4.1748]
[1737195693803,0.063,239.55,239.54,20.0]
[1737195694102,0.063,239.55,239.54,52.51386171]
[1737195694685,0.0001,239.55,239.54,52.51386171]
[1737195695096,4.1714,239.73,239.58,20.0]
[1737195695298,49.20920471,239.7,239.61,32.51386171]
[1737195695499,32.51386171,239.64,239.55,6.0661]
[1737195695880,32.51386171,239.62,239.55,1.8917]
[1737195696298,23.776884,239.63,239.58,20.0]
[1737195696502,23.776884,239.63,239.55,1.8917]
[1737195696689,23.776884,239.61,239.55,1.8917]
[1737195697000,32.51386171,239.6,239.52,32.51386171]
[1737195697207,32.51386171,239.6,239.53,4.1748]
[1737195697502,32.51386171,239.57,239.51,4.175]
[1737195697691,32.51386171,239.57,239.51,24.175]
[1737195697900,32.51386171,239.57,239.51,4.175]
[1737195698079,32.51386171,239.55,239.45,10.4404]
[1737195698394,32.51386171,239.55,239.46,32.51386171]
[1737195698785,32.51386171,239.57,239.48,32.51386171]
[1737195698980,32.51386171,239.57,239.51,20.0]
[1737195699297,16.690042,239.56,239.52,4.175]
[1737195700390,32.51386171,239.61,239.52,36.68886171]
[1737195700594,32.51386171,239.61,239.52,47.12636171]
[1737195700809,16.687705,239.58,239.52,47.12636171]
[1737195701105,16.687705,239.58,239.53,1.04299776]
[1737195701275,16.687705,239.58,239.54,4.1746]
[1737195701481,32.51386171,239.64,239.57,20.0]
[1737195701793,4.1714,239.73,239.54,47.12506171]
[1737195701794,16.683337,239.63,239.58,32.51386171]
[1737195702186,32.51386171,239.7,239.63,20.0]
[1737195702498,16.681601,239.66,239.62,32.51386171]
[1737195702693,8.06,239.85,239.64,32.51386171]
[1737195702694,32.51386171,239.74,239.64,32.51386171]
[1737195702895,32.51386171,239.78,239.69,32.51386171]
[1737195703202,32.51386171,239.8,239.72,4.1715]
[1737195703388,32.51386171,239.8,239.7,10.4296]
[1737195703389,32.51386171,239.76,239.7,4.1717]
[1737195703583,32.51386171,239.72,239.7,1.04299776]
[1737195703790,23.776884,239.71,239.7,1.04299776]
[1737195705280,27.948584,239.71,239.7,1.04299776]
[1737195705790,32.51386171,239.72,239.57,32.51386171]
[1737195705989,32.51386171,239.69,239.61,32.51386171]
[1737195706193,20.847284,239.74,239.56,4.17419776]
[1737195706391,23.776884,239.69,239.56,4.17419776]
[1737195706594,23.776884,239.64,239.56,36.68805947]
[1737195707110,32.51386171,239.59,239.56,9.776e-05]
[1737195707408,32.51386171,239.59,239.52,4.1749]
[1737195708313,32.51386171,239.59,239.5,6.0912]
[1737195708889,32.51386171,239.61,239.52,32.51386171]
[1737195709102,32.51386171,239.61,239.5,38.60506171]
[1737195709288,32.51386171,239.59,239.5,38.60506171]
[1737195710204,32.51386171,239.63,239.54,32.51386171]
[1737195710410,32.51386171,239.63,239.52,32.51386171]
[1737195710986,32.51386171,239.63,239.54,32.51386171]
[1737195711507,32.51386171,239.65,239.56,32.51386171]
[1737195711818,23.776884,239.66,239.58,32.51386171]
[1737195712810,23.776884,239.64,239.56,32.51386171]
[1737195713021,32.51386171,239.65,239.5,1.916]
[1737195713022,32.51386171,239.59,239.51,4.175]
[1737195713198,32.51386171,239.65,239.55,32.51386171]
[1737195713392,32.51386171,239.67,239.58,32.51386171]
[1737195713600,32.51386171,239.67,239.56,32.51386171]
[1737195713793,32.51386171,239.65,239.56,32.51386171]
[1737195714514,32.51386171,239.59,239.5,1.916]
[1737195714700,32.51386171,239.59,239.52,20.0]
[1737195714907,23.776884,239.6,239.51,32.51386171]
[1737195715784,32.51386171,239.63,239.53,32.51386171]
[1737195715996,32.51386171,239.63,239.57,0.03]
[1737195716195,36.68696171,239.63,239.57,0.03]
[1737195716395,32.51386171,239.63,239.57,0.03]
[1737195717309,32.51386171,239.67,239.57,32.54386171]
[1737195717711,32.51386171,239.67,239.58,1.04289403]
[1737195718109,32.51386171,239.67,239.59,4.1737]
[1737195718412,32.57686171,239.71,239.61,32.51386171]
[1737195718786,0.063,239.71,239.66,32.51386171]
[1737195718990,0.063,239.71,239.65,20.0]
[1737195719211,0.063,239.71,239.63,32.51386171]
[1737195719526,0.063,239.71,239.67,32.51386171]
[1737195719701,0.063,239.71,239.65,32.51386171]
[1737195719895,0.063,239.71,239.63,32.51386171]
[1737195720096,0.063,239.71,239.65,32.51386171]
[1737195720296,0.063,239.71,239.66,4.1725]
[1737195720611,32.51386171,239.7,239.63,4.1729]
[1737195720811,0.063,239.71,239.66,1.04289403]
[1737195721821,0.063,239.71,239.69,32.51386171]
[1737195722318,0.063,239.71,239.7,4.1718]
[1737195722617,0.063,239.79,239.73,20.0]
[1737195722821,0.063,239.79,239.78,32.51386171]
[1737195723020,0.063,239.79,239.7,24.51933285]
[1737195723021,0.063,239.79,239.72,32.51386171]
[1737195723389,0.063,239.79,239.74,32.51386171]
[1737195723594,0.063,239.79,239.78,32.51386171]
[1737195723824,0.063,239.79,239.76,32.51386171]
[1737195724399,0.063,239.79,239.74,32.51386171]
[1737195724611,0.063,239.79,239.76,32.51386171]
[1737195724926,0.063,239.79,239.78,32.51386171]
[1737195725228,0.0001,239.79,239.78,32.51386171]
[1737195726613,0.0001,239.79,239.77,4.78]
[1737195726814,0.0001,239.79,239.78,57.33363974]
[1737195727016,32.51386171,239.96,239.82,20.0]
[1737195727219,32.51386171,239.96,239.87,32.51386171]
[1737195727609,32.51386171,239.96,239.89,32.51386171]
[1737195728119,32.51386171,240.0,239.91,32.51386171]
[1737195728323,32.51386171,240.0,239.92,4.168]
[1737195728720,32.51386171,240.0,239.92,5.21089403]
[1737195728918,32.51386171,240.02,239.93,32.51386171]
[1737195729227,32.51386171,240.0,239.92,5.21089403]
[1737195730438,32.51386171,240.02,239.94,4.1677]
[1737195731632,0.063,240.07,239.94,28.56959943]
[1737195731633,0.0001,239.95,239.94,28.56959943]
[1737195731829,0.0001,239.95,239.94,165.86959943]
[1737195732010,0.063,240.07,239.97,20.0]
[1737195732211,0.063,240.07,240.03,32.51386171]
[1737195732509,0.063,240.07,240.03,36.67996171]
[1737195732718,0.063,240.07,240.01,32.51386171]
[1737195732916,32.51386171,240.03,239.95,32.51386171]
[1737195733133,32.51386171,240.01,239.94,1.04289403]
[1737195733828,32.51386171,240.01,239.93,4.1678]
[1737195733829,32.51386171,240.01,239.93,36.68166171]
[1737195734005,32.57686171,240.07,239.97,32.51386171]
[1737195734209,32.57686171,240.07,239.99,32.51386171]
[1737195734609,32.57686171,240.07,239.99,36.68056171]
[1737195735024,0.063,240.07,240.01,32.51386171]
[1737195735427,32.57686171,240.07,239.99,36.68056171]
[1737195735935,32.51386171,240.0,239.88,4.1687]
[1737195736133,32.51386171,239.95,239.87,1.916]
[1737195736428,32.51386171,239.93,239.83,32.51386171]
[1737195736632,32.51386171,239.97,239.89,32.51386171]
[1737195737613,32.51386171,239.99,239.89,32.51386171]
[1737195737826,32.51386171,239.99,239.91,32.51386171]
[1737195738917,32.51386171,239.99,239.91,36.68196171]
[1737195739238,36.68036171,240.01,239.91,36.68196171]
[1737195739436,32.51386171,239.99,239.91,36.68196171]
[1737195739636,32.51386171,239.99,239.91,4.1681]
[1737195740143,32.51386171,240.02,239.93,32.51386171]
[1737195740533,0.063,240.07,239.91,4.1681]
[1737195740534,32.51386171,240.04,239.95,32.51386171]
[1737195741228,32.51386171,240.04,239.95,36.68136171]
[1737195741434,32.51386171,240.06,239.97,32.51386171]
[1737195741741,0.063,240.07,239.95,4.1675]
[1737195741742,0.063,240.07,239.99,32.51386171]
[1737195741949,0.063,240.02,239.97,32.51386171]
[1737195742519,0.063,240.02,239.95,32.51386171]
[1737195742727,32.51386171,240.0,239.91,32.51386171]
[1737195743121,32.51386171,239.98,239.89,32.51386171]
[1737195743642,32.51386171,240.0,239.91,32.51386171]
[1737195743823,32.57686171,240.02,239.93,32.51386171]
[1737195744016,0.063,240.02,239.96,32.51386171]
[1737195744945,32.57686171,240.02,239.94,32.51386171]
[1737195745148,32.51386171,240.0,239.92,32.51386171]
[1737195745316,32.51386171,239.96,239.88,0.03]
[1737195745522,32.51386171,239.96,239.88,32.54386171]
[1737195745823,32.51386171,239.91,239.88,0.03]
[1737195746449,56.29074571,239.89,239.88,0.03]
[1737195747148,23.776884,239.89,239.88,0.03]
[1737195747349,60.45924571,239.89,239.88,0.03]
[1737195747939,60.45924571,239.89,239.88,0.0001]
[1737195748247,92.97310742,239.89,239.88,0.0001]
[1737195749146,32.51386171,239.77,239.68,1.977]
[1737195749359,32.51386171,239.71,239.64,0.03]
[1737195749654,32.51386171,239.73,239.64,0.03]
[1737195749826,32.51386171,239.73,239.65,32.51386171]
[1737195750251,32.51386171,239.73,239.64,0.03]
[1737195751162,32.51386171,239.71,239.64,0.03]
[1737195751337,47.11166171,239.76,239.64,0.03]
[1737195751338,32.51386171,239.67,239.64,0.03]
[1737195752537,36.68586171,239.69,239.64,0.03]
[1737195752745,4.172,239.69,239.64,0.03]
[1737195753139,20.0,239.72,239.65,32.51386171]
[1737195753332,32.51386171,239.79,239.71,32.51386171]
[1737195753854,32.51386171,239.85,239.75,32.51386171]
[1737195754032,32.51386171,239.87,239.77,32.51386171]
[1737195754234,32.51386171,239.85,239.77,32.51386171]
[1737195755169,4.1694,239.84,239.75,32.51386171]
[1737195755534,56.29074571,239.83,239.73,32.51386171]
[1737195755849,20.0,239.8,239.73,32.51386171]
[1737195756061,23.776884,239.79,239.69,4.172]
[1737195756234,56.29074571,239.79,239.7,32.51386171]
[1737195756953,23.776884,239.76,239.68,32.51386171]
[1737195757148,4.171,239.75,239.68,32.51386171]
[1737195757345,23.776884,239.74,239.66,32.51386171]
[1737195757855,20.0,239.72,239.66,32.51386171]
[1737195758372,23.776884,239.71,239.64,32.54386171]
[1737195759063,4.1718,239.7,239.64,32.54386171]
[1737195759364,56.29074571,239.69,239.64,0.03]
[1737195759571,23.776884,239.66,239.64,0.03]
[1737195759936,43.776884,239.65,239.64,0.03]
[1737195760448,60.464229,239.65,239.64,0.03]
[1737195760759,16.687345,239.65,239.64,0.03]
[1737195762359,0.063,239.88,239.67,20.0]
[1737195762558,25.47868167,240.13,239.9,20.0]
[1737195762559,12.95103914,240.13,239.9,20.0]
[1737195762868,16.658921,240.06,240.01,32.51386171]
[1737195763045,12.95103914,240.13,240.01,32.51386171]
[1737195763357,17.11553914,240.13,240.0,32.51386171]
[1737195763563,32.51386171,240.12,240.0,32.51386171]
[1737195763750,23.776884,240.11,240.0,32.51386171]
[1737195763946,32.51386171,240.12,240.0,32.51386171]
[1737195764153,32.51386171,240.1,240.0,32.51386171]
[1737195764339,20.063,240.07,240.0,32.51386171]
[1737195764536,0.063,240.07,239.98,32.51386171]
[1737195764765,4.1658,240.05,239.98,32.51386171]
[1737195765368,4.166,240.04,239.96,32.51386171]
[1737195765739,23.776884,240.01,239.96,32.51386171]
[1737195765951,23.776884,240.01,239.94,32.51386171]
[1737195766263,32.51386171,240.01,239.92,32.51386171]
[1737195766470,0.063,240.02,239.96,32.51386171]
[1737195766955,23.839884,240.02,239.94,32.51386171]
[1737195767840,0.063,240.02,239.94,32.51386171]
[1737195768298,0.063,240.02,239.97,32.51386171]
[1737195768462,32.51386171,240.01,239.93,32.51386171]
[1737195768849,23.776884,240.0,239.91,32.51386171]
[1737195769050,0.063,240.02,239.95,32.51386171]
[1737195769990,0.063,240.02,239.97,32.51386171]
[1737195770452,0.063,240.02,239.95,32.51386171]
[1737195770647,23.839884,240.02,239.95,32.51386171]
[1737195770854,23.839884,240.02,239.93,32.51386171]
[1737195771168,32.51386171,240.01,239.93,32.51386171]
[1737195771549,0.063,240.02,239.93,32.51386171]
[1737195771871,23.839884,240.02,239.93,32.51386171]
[1737195772079,0.063,240.02,239.93,36.68166171]
[1737195772283,0.063,240.02,239.95,32.51386171]
[1737195772644,0.063,240.02,239.93,36.68166171]
[1737195772645,23.839884,240.02,239.93,36.68166171]
[1737195772871,32.51386171,239.97,239.93,4.1678]
[1737195773249,32.51386171,239.99,239.93,4.1678]
[1737195773756,32.51386171,239.99,239.91,20.0]
[1737195774073,32.51386171,239.95,239.89,4.1684]
[1737195774458,32.51386171,239.95,239.91,20.0]
[1737195774669,32.51386171,239.97,239.91,20.0]
[1737195775372,32.51386171,239.95,239.87,4.1687]
[1737195775767,32.51386171,239.99,239.9,32.51386171]
[1737195776154,32.51386171,239.99,239.91,4.1682]
[1737195777270,32.51386171,239.97,239.91,4.1682]
[1737195777578,32.51386171,239.97,239.91,20.0]
[1737195778569,32.51386171,239.95,239.87,4.92]
[1737195778872,32.51386171,239.93,239.88,0.03]
[1737195779975,32.51386171,239.95,239.88,0.03]
[1737195780769,32.51386171,239.92,239.88,0.03]
[1737195781151,32.51386171,239.94,239.88,0.03]
[1737195781956,32.51386171,239.91,239.88,0.03]
[1737195783049,32.51386171,239.93,239.88,0.03]
[1737195785076,32.51386171,239.97,239.91,20.0]
[1737195785575,32.51386171,239.95,239.91,20.0]
[1737195785749,32.51386171,239.97,239.91,20.0]
[1737195786171,32.51386171,239.95,239.91,20.0]
[1737195786774,32.51386171,239.95,239.88,4.1986]
[1737195787180,32.51386171,239.95,239.9,20.0]
[1737195787377,20.0049988,239.96,239.9,20.0]
[1737195787672,20.0049988,239.96,239.89,20.0]
[1737195787878,20.0049988,239.96,239.9,20.0]
[1737195788676,20.0049988,239.96,239.88,0.03]
[1737195788857,20.0049988,239.94,239.89,20.0]
[1737195789457,20.0049988,239.94,239.88,0.03]
[1737195789667,20.0049988,239.92,239.88,0.03]
[1737195790584,23.776884,239.99,239.88,35.4642]
[1737195790749,20.56267996,240.27,240.02,161.076884]
[1737195790951,6.43135225,240.38,240.25,20.0049988]
[1737195791174,6.43135225,240.38,240.26,137.92432872]
[1737195791473,4.1583,240.49,240.25,24.9049988]
[1737195791674,12.951039,240.41,240.28,20.0]
[1737195791877,20.7867,240.54,240.29,0.62400145]
[1737195792089,4.1595,240.41,240.28,157.3]
[1737195792252,20.0049988,240.43,240.34,20.0049988]
[1737195792451,4.1605,240.36,240.34,20.0049988]
[1737195792787,4.1605,240.36,240.32,20.0049988]
[1737195792962,4.2237,240.35,240.32,20.0049988]
[1737195793167,4.2237,240.35,240.3,20.0049988]
[1737195793365,20.0,240.34,240.27,32.41060379]
[1737195793562,20.0,240.34,240.3,32.41060379]
[1737195793981,23.776884,240.32,240.24,32.41060379]
[1737195794166,23.776884,240.28,240.22,32.41060379]
[1737195794472,23.776884,240.21,240.14,32.41060379]
[1737195794873,27.939684,240.22,240.14,32.41060379]
[1737195795273,38.346784,240.22,240.14,32.41060379]
[1737195795654,14.19489123,240.32,240.2,32.41060379]
[1737195795655,32.41060379,240.32,240.2,32.41060379]
[1737195795861,32.41060379,240.32,240.12,32.41060379]
[1737195795862,0.063,240.35,240.31,32.41060379]
[1737195796087,0.063,240.35,240.34,32.41060379]
[1737195796868,4.2235,240.35,240.34,32.41060379]
[1737195797067,4.2235,240.35,240.27,20.0]
[1737195797266,4.2235,240.35,240.24,32.41060379]
[1737195797482,4.2235,240.35,240.27,20.0]
[1737195797780,4.2235,240.35,240.34,32.41060379]
[1737195797983,0.063,240.35,240.34,32.41060379]
[1737195799474,0.063,240.35,240.34,64.82120758]
[1737195799684,0.063,240.35,240.34,32.41060379]
[1737195801395,0.063,240.35,240.34,64.82120758]
[1737195801579,0.063,240.48,240.34,202.12120758]
[1737195801779,0.063,240.48,240.46,32.41060379]
[1737195802406,4.2214,240.48,240.46,32.41060379]
[1737195802705,0.063,240.48,240.46,32.41060379]
[1737195803506,0.063,240.56,240.47,202.74498662]
[1737195803717,0.063,240.6,240.47,202.74498662]
[1737195803718,0.063,240.6,240.59,64.82120758]
[1737195803884,0.063,240.72,240.71,32.41060379]
[1737195804279,0.063,240.72,240.69,32.41060379]
[1737195804586,4.1543,240.71,240.56,5.42]
[1737195804786,0.03,240.6,240.59,20.0]
[1737195804993,0.063,240.72,240.59,20.62320564]
[1737195805594,0.063,240.72,240.69,32.41060379]
[1737195805922,0.063,240.72,240.71,32.41060379]
[1737195806586,0.063,240.72,240.71,64.82120758]
[1737195806919,0.00344406,240.72,240.71,64.82120758]
[1737195807203,0.00344406,240.72,240.71,32.41060379]
[1737195807782,0.00344406,240.72,240.71,64.82120758]
[1737195807990,0.76780728,240.82,240.71,64.82120758]
[1737195807991,0.76780728,240.82,240.75,23.776884]
[1737195808293,0.76780728,240.82,240.81,32.41060379]
[1737195808603,0.03,240.95,240.88,20.0]
[1737195808810,0.03,240.95,240.93,23.776884]
[1737195808989,0.03,240.95,240.94,29.77912454]
[1737195809190,0.03,240.95,240.94,94.60033212]
[1737195809389,0.03,240.96,240.95,23.776884]
[1737195809604,0.03,241.03,240.98,43.776884]
[1737195809910,0.03,241.03,241.02,43.776884]
[1737195810119,0.03,241.03,241.02,53.03258932]
[1737195810289,0.03,241.05,241.02,65.44334468]
[1737195810611,4.1447,241.27,241.04,20.0]
[1737195810820,20.0,241.25,241.18,32.41060379]
[1737195811009,20.0,241.23,241.18,32.41060379]
[1737195811311,32.41060379,241.2,241.13,32.41060379]
[1737195811516,36.55610379,241.22,241.13,32.41060379]
[1737195811693,36.55610379,241.22,240.97,0.62192777]
[1737195811694,32.41060379,241.18,241.1,32.41060379]
[1737195811900,32.41060379,241.19,241.12,32.41060379]
[1737195812106,32.41060379,241.19,241.1,32.41060379]
[1737195812107,23.776884,241.18,241.1,32.41060379]
[1737195812399,32.41060379,241.11,241.02,32.41060379]
[1737195813089,32.41060379,241.13,241.04,32.41060379]
[1737195813510,32.41060379,241.11,241.02,32.41060379]